Cogmind - Beta 14 @@@ ROGUE MODE // 2024.11.21 @ 22:32:52 Player: MarKhan Result: Destroyed by X-77 Beamer with Gatling Laser Performance ------------- Evolutions (6) 3000 Regions Visited (20) 4000 Robots Destroyed (139) 695 Value Destroyed (2935) 2935 Prototype IDs (50) 1000 Alien Tech Used (0) 0 Bonus (1088) 1088 TOTAL SCORE: 12718 Bonus ------- High Alert Combat Kills 77 Follower Combat Kills 511 Network Hubs Disabled 200 Aligned with FarCom 300 Cogmind --------- Core Integrity 0/1150 Matter 205/300 Energy 71/100 System Corruption 15% Temperature Cool (12) Movement Core (50) Location -4/Armory Parts ------- > --- POWER (1) -------- (None) > --- PROPULSION (3) --- (None) > --- UTILITY (13) ----- Enhanced Optical Array Authchip [Propulsion] > --- WEAPON (2) ------- (None) > --- INVENTORY (5) ---- Heavy Plasma Cannon Long-range Missile Launcher Neutron Missile Launcher Enhanced Force Lance Enhanced Force Lance Peak State ------------ > --- POWER ------------ Improved Deuterium Engine > --- PROPULSION ------- Biomechanical Wings Field Propulsion Drive Field Propulsion Drive > --- UTILITY ---------- Power Amplifier Machine Analyzer Enhanced Optical Array Improved Hacking Suite Improved Hacking Suite Improved Hacking Suite Advanced Hacking Suite Experimental Hacking Suite Experimental Hacking Suite Improved System Shield Improved System Shield > --- WEAPON ----------- Longsword +1 Lance > --- INVENTORY -------- Light Ion Engine Energy Well Advanced ECM Suite Improved Utility Shielding Long-range Missile Launcher [Rating: 97] Favorites ----------- Power Light Ion Engine Engine Light Ion Engine Power Core Micro Nuclear Core Propulsion Improved Flight Unit Flight Unit Improved Flight Unit Utility Improved Hacking Suite Device Structural Scanner Storage Small Storage Unit Processor Machine Analyzer Hackware Improved Hacking Suite Protection Improved Utility Shielding Weapon Makeshift Hammer Energy Gun Particle Gun Energy Cannon Heavy Plasma Cannon Ballistic Gun Light Assault Rifle Launcher Long-range Missile Launcher Special Weapon Improved Remote Datajack Impact Weapon Makeshift Hammer Slashing Weapon Longsword +1 Piercing Weapon Lance Build | -11 -10 -10 -9 -9 -9 -8 -8 -7 -6 -6 -6 -6 -6 -5 -5 -5 -5 -4 -4 -4 ------- Run | Yrd Mat Min Mat Min Exi Min Mat Fac Fac Ext Cet Arc Hub Fac Upp Upp War Pro Fac Arm Slots Evolved 12 | . . . 2 . . . 2 2 2 . . . . 2 . . . . 2 . Power . | . . . . . . . . . . . . . . . . . . . . . Propulsion 1 | . . . . . . . . 1 . . . . . . . . . . . . Utility 11 | . . . 2 . . . 2 1 2 . . . . 2 . . . . 2 . Weapon . | . . . . . . . . . . . . . . . . . . . . . Parts Attached 188 | 3 16 . 15 3 1 9 3 9 17 13 1 23 6 30 2 2 1 3 13 18 Power 24 | . 3 . 3 . . 2 . 2 5 . . 1 1 4 . . 1 . 1 1 Engine 13 | . 3 . 3 . . 2 . . 1 . . . . 3 . . 1 . . . Core 11 | . . . . . . . . 2 4 . . 1 1 1 . . . . 1 1 Reactor . | . . . . . . . . . . . . . . . . . . . . . Propulsion 18 | . . . 2 . 1 . . 2 1 1 . . . 3 . 1 . . 2 5 Treads . | . . . . . . . . . . . . . . . . . . . . . Leg . | . . . . . . . . . . . . . . . . . . . . . Wheel . | . . . . . . . . . . . . . . . . . . . . . Hover . | . . . . . . . . . . . . . . . . . . . . . Flight 18 | . . . 2 . 1 . . 2 1 1 . . . 3 . 1 . . 2 5 Utility 86 | 1 8 . 7 1 . 4 2 3 9 7 . 14 . 19 1 1 . . 2 7 Device 30 | 1 4 . 2 . . 1 1 . 1 4 . 4 . 9 1 . . . 1 1 Storage 2 | . . . . . . 1 . . 1 . . . . . . . . . . . Processor 9 | . . . 3 . . . . 1 1 1 . . . 2 . . . . 1 . Hackware 23 | . . . . . . . . 2 2 1 . 6 . 5 . 1 . . . 6 Protection 22 | . 4 . 2 1 . 2 1 . 4 1 . 4 . 3 . . . . . . Artifact . | . . . . . . . . . . . . . . . . . . . . . Weapon 60 | 2 5 . 3 2 . 3 1 2 2 5 1 8 5 4 1 . . 3 8 5 Energy Gun 5 | 2 2 . . . . . . . . . . 1 . . . . . . . . Energy Cannon 4 | . . . . . . . . . 1 1 1 1 . . . . . . . . Ballistic Gun 3 | . 2 . . . . . . . . . . 1 . . . . . . . . Ballistic Cannon . | . . . . . . . . . . . . . . . . . . . . . Launcher 8 | . . . . . . 1 . . . . . . 2 1 1 . . 1 . 2 Special Weapon 2 | . . . . . . . . . . . . . . . . . . . 2 . Impact Weapon 9 | . 1 . 3 2 . . 1 1 1 . . . . . . . . . . . Slashing Weapon 25 | . . . . . . 2 . 1 . 4 . 5 3 2 . . . 1 6 1 Piercing Weapon 4 | . . . . . . . . . . . . . . 1 . . . 1 . 2 Special Melee Weapon . | . . . . . . . . . . . . . . . . . . . . . Unidentified Prototypes 5 | . . . 1 . . . . . 1 . . . . 1 . . . . . 2 Parts Lost 46 | . 1 . 4 . . . . . 3 1 . 3 5 2 1 2 . 7 3 14 Power 8 | . . . 2 . . . . . 1 . . 1 2 . . . . 1 . 1 Propulsion 9 | . . . . . . . . . . 1 . 2 . . . 2 . 1 . 3 Utility 23 | . 1 . 2 . . . . . 1 . . . 1 2 1 . . 4 2 9 Weapon 6 | . . . . . . . . . 1 . . . 2 . . . . 1 1 1 Highest Loss Streak 14 | . 1 . 3 . . . . . 2 1 . 2 2 2 1 3 . 7 2 14 To Critical Strikes . | . . . . . . . . . . . . . . . . . . . . . Average Slot Usage (%) 87 | . 61 71 80 88 88 95 99 98 98 90 93 90 84 92 99 88 88 84 50 66 Engine 3 | . 8 14 7 . . 6 9 1 . . . . . 3 . . 5 4 . . Core 2 | . . . . . . . . 5 5 6 6 5 5 . 5 5 . . 1 4 Flight 13 | . . . 8 22 22 22 18 23 20 16 20 11 6 14 17 11 11 10 5 9 Device 10 | . 20 28 11 . . 7 18 15 12 9 6 3 12 4 5 5 5 5 5 6 Storage 3 | . . . . . . 6 9 7 6 6 6 5 . . . . . . . . Processor 14 | . . . 27 23 22 22 18 15 13 16 20 18 13 12 11 11 11 11 12 14 Hackware 20 | . . . . . . . . 13 24 25 26 27 33 40 40 41 41 39 19 24 Protection 3 | . 3 . 2 20 22 8 8 . 1 . . 2 . 3 5 5 5 4 . . Energy Gun 1 | . 13 . . . . . . . . . . . . . . . . . . . Ballistic Gun 1 | . 13 14 . . . . . . . . . . . . . . . . . . Impact Weapon 6 | . 1 14 22 22 22 14 17 9 5 6 6 . . . . . . . . . Slashing Weapon 3 | . . . . . . 7 . 4 5 . . 10 11 4 1 . . . 3 . Peak Build Rating 97 | 3 7 6 22 20 20 30 31 41 53 58 60 66 58 97 90 83 72 72 79 95 Average Rating 47 | 1 5 6 14 19 19 25 25 36 49 51 55 59 56 82 87 78 72 69 52 71 On Entrance 40 | . 3 6 6 20 20 20 28 25 41 50 55 55 58 42 90 82 75 72 39 66 Naked Turns . | . . . . . . . . . . . . . . . . . . . . . Heaviest Build 35 | 3 8 7 14 10 10 15 16 19 23 29 18 35 16 19 20 20 9 9 15 21 Greatest Support 27 | 3 9 9 16 10 10 16 16 22 23 24 27 24 12 20 20 20 10 10 21 21 Greatest Overweight (x) 3 | . 2 . 1 . . 1 . . . 2 . 2 1 3 . . . . 1 2 Average Overweight (x) . | . . . . . . . . . . . . . . . . . . . . . Largest Inventory Capacity 10 | 5 5 5 5 5 5 8 8 8 10 10 10 10 5 5 5 5 5 5 5 5 Average Capacity 6 | 5 5 5 5 5 5 6 8 8 8 10 10 9 5 5 5 5 5 5 5 5 Most Carried 10 | 2 5 5 5 5 5 8 7 8 10 10 10 10 5 5 5 5 5 5 5 5 Average Carried 6 | 1 4 5 3 5 4 6 6 7 8 9 9 9 4 4 4 4 5 4 4 4 Final Capacity 10 | 5 5 5 5 5 5 8 8 8 10 10 10 5 5 5 5 5 5 5 5 5 Final Carried 10 | 2 5 5 5 5 5 8 7 8 10 10 10 5 4 5 5 5 5 5 4 5 Class Distribution -------------------- 29% | Hacker-Scout 22% | Wizard-Scout 13% | Scavenger-Scout 11% | Mutant 7% | Scavenger-Mutant 5% | Wizard-Mutant 3% | Hacker-Assassin Dominant Class ---------------- Mutant | -10/Materials Mutant | -10/Mines Scavenger-Mutant | -9/Materials Mutant | -9/Mines Mutant | -9/Exiles Scavenger-Scout | -8/Mines Scavenger-Scout | -8/Materials Hacker-Scout | -7/Factory Hacker-Scout | -6/Factory Hacker-Scout | -6/Extension Hacker-Scout | -6/Cetus Hacker-Gladiator | -6/Archives Wizard-Scout | -6/Hub_04(d) Wizard-Scout | -5/Factory Wizard-Mutant | -5/Upper Caves Wizard-Mutant | -5/Upper Caves Wizard-Mutant | -5/Warlord Wizard-Mutant | -4/Proximity Caves Hacker-Scout | -4/Factory Hacker-Scout | -4/Armory Resources | -11 -10 -10 -9 -9 -9 -8 -8 -7 -6 -6 -6 -6 -6 -5 -5 -5 -5 -4 -4 -4 ----------- Run | Yrd Mat Min Mat Min Exi Min Mat Fac Fac Ext Cet Arc Hub Fac Upp Upp War Pro Fac Arm Matter Collected 2116 | 220 220 . 165 20 . 121 56 90 145 180 . 244 47 368 40 . . 44 124 32 Remotely . | . . . . . . . . . . . . . . . . . . . . . Salvage Created 5095 | 18 568 . 929 69 . 359 269 154 582 348 . 523 302 655 60 . . 42 154 63 Parts 240 | 2 43 . 24 . . 18 17 6 16 12 . 29 20 28 7 . . 2 13 3 Haulers Intercepted 11 | . 2 . 4 . . . 1 1 1 . . . 1 1 . . . . . . Recyclers Shooed 4 | . 1 . . . . . 1 . . 1 . . . 1 . . . . . . Parts Field Recycled . | . . . . . . . . . . . . . . . . . . . . . Retrieved Matter . | . . . . . . . . . . . . . . . . . . . . . Parts Self-Destructed 9 | . . . . . . . . . . . . . . . 6 1 . 2 . . Prevented . | . . . . . . . . . . . . . . . . . . . . . Kills | -11 -10 -10 -9 -9 -9 -8 -8 -7 -6 -6 -6 -6 -6 -5 -5 -5 -5 -4 -4 -4 ------- Run | Yrd Mat Min Mat Min Exi Min Mat Fac Fac Ext Cet Arc Hub Fac Upp Upp War Pro Fac Arm Combat Hostiles Destroyed 51 | . 6 . 13 2 . 4 . . 4 5 . 4 1 . 5 . . 3 3 1 Melee 26 | . . . 6 . . . . . 4 4 . 4 1 . . . . 3 3 1 Guns 6 | . 6 . . . . . . . . . . . . . . . . . . . AOE 9 | . . . . . . 4 . . . . . . . . 5 . . . . . Classes Destroyed 15 | 1 7 . 3 . . . . . 1 . . . . . . . . 1 1 1 Worker 15 | . 1 . 3 . . 3 . 1 1 . . . 3 3 . . . . . . Builder 8 | . . . 2 . . 1 . . . 1 . . 4 . . . . . . . Tunneler 8 | 1 . . . . . 3 3 . . . . . . . . . . . 1 . Hauler 11 | . 2 . 4 . . . 1 1 1 . . . 1 1 . . . . . . Recycler 11 | . 1 . 2 . . 2 2 . 2 . . . . 2 . . . . . . Mechanic 2 | . 1 . 1 . . . . . . . . . . . . . . . . . Operator 13 | . 3 . 3 . . . 1 . . . . 6 . . . . . . . . Drone 2 | . . . . . . . . . . . . . . . . . . 2 . . Watcher 20 | . 3 . 2 . . . 2 3 2 1 . . 2 3 . . . . 1 1 Swarmer 17 | . . . 4 . . 4 . . 3 . . . . . 5 . . 1 . . Cutter 3 | . . . . . . . . . . . . . . . . . . . 3 . Saboteur 1 | . . . . . . . . . . . . . . . . . . . . 1 Grunt 18 | . 6 . 7 2 . . . . . 3 . . . . . . . . . . Sentry 8 | . . . 2 . . . . . . 2 . 4 . . . . . . . . Programmer 2 | . . . . . . . . . 1 . . . 1 . . . . . . . Best Kill Streak 8 | 1 4 . 6 2 . 5 3 1 2 2 . 2 8 1 5 . . 1 2 1 Combat Bots Only 5 | . 2 . 4 2 . 4 . . 2 2 . 1 1 . 5 . . 1 2 1 Max Kills in Single Turn 7 | 1 2 . 1 1 . 4 1 1 1 1 . 1 7 1 4 . . 1 1 1 Gunslinging . | . . . . . . . . . . . . . . . . . . . . . Exploded 4 | . . . . . . 4 . . . . . . . . 4 . . . . . Melee 1 | . . . 1 . . . . . 1 1 . 1 1 . . . . 1 1 1 Uniques/NPCs Destroyed . | . . . . . . . . . . . . . . . . . . . . . Combat | -11 -10 -10 -9 -9 -9 -8 -8 -7 -6 -6 -6 -6 -6 -5 -5 -5 -5 -4 -4 -4 -------- Run | Yrd Mat Min Mat Min Exi Min Mat Fac Fac Ext Cet Arc Hub Fac Upp Upp War Pro Fac Arm Hostile Shots Fired 701 | . 49 . 88 9 . . 2 28 79 7 13 28 93 17 3 29 . 70 21 165 Missed 292 | . 8 . 25 5 . . 1 17 32 2 8 7 54 4 1 14 . 29 9 76 Damage Taken 6815 | . 540 . 755 43 . . 50 78 697 121 91 485 596 383 38 246 . 827 249 1616 Core 3330 | . 217 . 286 22 . . . 18 264 70 18 66 349 194 14 114 . 547 45 1106 Absorbed by Shields 30 | . . . . . . . . . . 30 . . . . . . . . . . Redirected to Shielding 107 | . . . . . . . . . 7 . . . . . 15 . . 85 . . Regen/Repaired (Parts) 280 | . 70 . 70 . . . . 75 23 . . . . 24 . . . . 18 . Core Remaining (%) 50 | 100 . 13 . . . 23 100 97 . . . . 9 . . . . 13 . . Volleys Fired 96 | 1 76 . . . . 1 . . . 6 . 5 2 . 4 . . . 1 . Largest 2 | 2 2 . . . . 1 . . . 1 . 1 1 . 1 . . . 1 . Hottest 90 | 80 85 . . . . 33 . . . 90 . 90 39 . 43 . . . 7 . Shots Fired 163 | 2 143 . . . . 1 . . . 6 . 5 2 . 3 . . . 1 . Gun 148 | 2 143 . . . . . . . . . . 3 . . . . . . . . Cannon 8 | . . . . . . . . . . 6 . 2 . . . . . . . . Launcher 6 | . . . . . . 1 . . . . . . 2 . 3 . . . . . Special 1 | . . . . . . . . . . . . . . . . . . . 1 . Kinetic 76 | . 75 . . . . . . . . . . 1 . . . . . . . . Thermal 80 | 2 68 . . . . . . . . 6 . 4 . . . . . . . . Explosive 6 | . . . . . . 1 . . . . . . 2 . 3 . . . . . Electromagnetic . | . . . . . . . . . . . . . . . . . . . . . Robot Hit Streak 10 | 1 10 . . . . . . . . . . 9 2 . . . . . . . Robot Miss Streak 4 | 1 4 . . . . . . . . . . 1 . . 1 . . . . . Penetration Max . | . . . . . . . . . . . . . . . . . . . . . Secondary Targets . | . . . . . . . . . . . . . . . . . . . . . Shots Hit Robots 302 | 1 91 . 64 4 . 14 9 5 31 16 . 30 8 18 . . . 4 6 1 Core Hits 120 | 1 37 . 6 . . 7 6 2 9 6 . 11 12 10 6 . . 3 3 1 Critical Kills 5 | . 1 . 3 . . . 1 . . . . . . . . . . . . . Critical Parts Destroyed 18 | . . . 13 2 . . . 1 2 . . . . . . . . . . . Critical Strikes 33 | . 2 . 16 2 . 1 1 1 4 1 . 4 . 1 . . . . . . Burn 1 | . 1 . . . . . . . . . . . . . . . . . . . Destroy 1 | . 1 . . . . . . . . . . . . . . . . . . . Smash 23 | . . . 16 2 . . 1 1 2 1 . . . . . . . . . . Sever 8 | . . . . . . 1 . . 2 . . 4 . 1 . . . . . . Melee Attacks 534 | . 6 . 101 7 . 15 29 35 133 28 5 32 20 66 . 1 . 6 27 23 Impact 263 | . 6 . 101 7 . 3 22 15 79 22 5 3 . . . . . . . . Slashing 239 | . . . . . . 12 7 20 54 6 . 29 20 61 . . . 2 27 1 Piercing 32 | . . . . . . . . . . . . . . 5 . 1 . 4 . 22 Sneak Attacks 68 | . . . 17 . . 9 8 4 8 3 . 9 1 7 . . . 1 1 . Combat Hostiles 2 | . . . . . . . . . . 1 . . . . . . . 1 . . Follow-up Attacks 27 | . . . 12 1 . 1 . 1 8 . . 3 1 . . . . . . . Damage Inflicted 14219 | 10 933 . 2906 185 . 1370 913 356 1405 857 . 1962 1048 1446 277 . . 198 307 46 Guns 968 | 10 933 . . . . . . . . . . 25 . . . . . . . . Cannons 31 | . . . . . . . . . . . . 31 . . . . . . . . Explosions 1161 | . . . . . . 176 . . . . . . 708 . 277 . . . . . Melee 12059 | . . . 2906 185 . 1194 913 356 1405 857 . 1906 340 1446 . . . 198 307 46 Ramming . | . . . . . . . . . . . . . . . . . . . . . Kinetic 447 | . 422 . . . . . . . . . . 25 . . . . . . . . Thermal 552 | 10 511 . . . . . . . . . . 31 . . . . . . . . Explosive 614 | . . . . . . 176 . . . . . . 161 . 277 . . . . . Electromagnetic 547 | . . . . . . . . . . . . . 547 . . . . . . . Impact 5066 | . . . 2906 185 . 179 566 213 497 520 . . . . . . . . . . Slashing 6787 | . . . . . . 1015 347 143 908 337 . 1906 340 1446 . . . 38 307 . Piercing 206 | . . . . . . . . . . . . . . . . . . 160 . 46 Highest Corruption 15 | . . . . . . . 2 . 6 6 1 1 8 7 7 7 7 . . 15 Average Corruption 4 | . . . . . . . 2 . 5 4 1 1 6 6 7 7 7 . . 11 Corruption Purged 5 | . . . . . . . . . . 5 . . . . . . . . . . Corruption Blocked . | . . . . . . . . . . . . . . . . . . . . . Effects 91 | . . . . . . . 12 . 7 13 . 3 20 27 5 1 . . . 3 Message Errors 24 | . . . . . . . 3 . . 5 . 3 8 4 1 . . . . . Matter Fused 21 | . . . . . . . 4 . 3 3 . . 6 5 . . . . . . Heat Flow Errors 16 | . . . . . . . 1 . 1 1 . . 3 9 1 . . . . . Energy Discharges 8 | . . . . . . . 1 . 1 1 . . 1 2 1 . . . . 1 Parts Rejected 1 | . . . . . . . . . . . . . . . . . . . . 1 Parts Fused 1 | . . . . . . . . . 1 . . . . . . . . . . . Data Loss (minor) 14 | . . . . . . . 2 . 1 2 . . 1 7 1 . . . . . Data Loss (major) 2 | . . . . . . . 1 . . 1 . . . . . . . . . . Alerts 2 | . . . . . . . . . . . . . 1 . . 1 . . . . Misdirections 1 | . . . . . . . . . . . . . . . . . . . . 1 Weapon Failures 1 | . . . . . . . . . . . . . . . 1 . . . . . Overload Shots . | . . . . . . . . . . . . . . . . . . . . . Overflow Damage 3507 | . . . 1163 105 . 594 227 156 186 97 . 466 89 328 . . . 23 73 . Projectiles . | . . . . . . . . . . . . . . . . . . . . . Explosions 66 | . . . . . . . . . . . . . 66 . . . . . . . Melee 3441 | . . . 1163 105 . 594 227 156 186 97 . 466 23 328 . . . 23 73 . Knockbacks 17 | . . . 9 2 . . 2 . 2 2 . . . . . . . . . . Impact 16 | . . . 9 1 . . 2 . 2 2 . . . . . . . . . . Kinetic . | . . . . . . . . . . . . . . . . . . . . . Secondary 1 | . . . . 1 . . . . . . . . . . . . . . . . Self-Inflicted Damage 104 | . . . . . . . . . . . . . 104 . . . . . . . Shots 1 | . . . . . . . . . . . . . 1 . . . . . . . Rammed 1 | . . . . . . . . . . . . . . . . 1 . . . . Targets Rammed 1 | . . . . . . . . . . . . . . . . 1 . . . . Kicked . | . . . . . . . . . . . . . . . . . . . . . Crushed . | . . . . . . . . . . . . . . . . . . . . . Highest Temperature 258 | 3 169 . 2 . . . 224 . 258 116 11 106 181 234 197 . . . . . Average Temperature 65 | 2 49 . 1 . . . 116 . 141 62 11 48 88 101 102 . . . . . Received Heat Transfer 1207 | . 321 . 324 24 . . . 18 18 37 45 54 51 30 . . . 99 30 156 Siege Activations . | . . . . . . . . . . . . . . . . . . . . . Robots Corrupted 28 | . . . 18 2 . . 2 2 1 2 . . 1 . . . . . . . Combat Hostiles 10 | . . . 7 2 . . . . . 1 . . . . . . . . . . Parts Fried 42 | . . . 22 1 . 1 3 5 3 4 . . 3 . . . . . . . Impact Corruptions 79 | . . . 45 4 . 5 10 6 5 4 . . . . . . . . . . Robots Melted . | . . . . . . . . . . . . . . . . . . . . . Combat Hostiles . | . . . . . . . . . . . . . . . . . . . . . Parts Melted 1 | . . . . . . . . . 1 . . . . . . . . . . . Heat Transferred 1354 | 25 1279 . . . . . . . . . . 50 . . . . . . . . Parts Sabotaged 1 | . . . . . . . . . . . . . . . . . . . . 1 Parts Stolen . | . . . . . . . . . . . . . . . . . . . . . Parts Stripped . | . . . . . . . . . . . . . . . . . . . . . Power Chain Reactions . | . . . . . . . . . . . . . . . . . . . . . Alert | -11 -10 -10 -9 -9 -9 -8 -8 -7 -6 -6 -6 -6 -6 -5 -5 -5 -5 -4 -4 -4 ------- Run | Yrd Mat Min Mat Min Exi Min Mat Fac Fac Ext Cet Arc Hub Fac Upp Upp War Pro Fac Arm Peak Influence 619 | 5 204 61 619 255 . 147 308 155 395 606 340 278 551 370 . . . . 608 337 Initial 339 | . 3 61 23 147 . . 57 . 27 166 339 113 28 277 . . . . 331 297 Average 186 | . 112 61 286 194 . 34 160 42 252 387 306 182 222 105 . . . . 390 172 Maximum Alert Level 2 | . 1 . 2 1 . . 1 . 1 2 1 1 2 1 . . . . 2 1 Low Security (%) 59 | 100 98 100 46 58 . 100 71 100 17 12 . 54 43 86 . . . . . 62 Level 1 33 | . 1 . 24 41 . . 28 . 82 43 100 45 47 13 . . . . 72 37 Level 2 7 | . . . 28 . . . . . . 43 . . 8 . . . . . 28 . Level 3 . | . . . . . . . . . . . . . . . . . . . . . Level 4 . | . . . . . . . . . . . . . . . . . . . . . Level 5 . | . . . . . . . . . . . . . . . . . . . . . High Security . | . . . . . . . . . . . . . . . . . . . . . Max Security . | . . . . . . . . . . . . . . . . . . . . . Squads Dispatched 43 | . 2 . 5 . . . 1 7 10 . 2 . 5 7 . . . 1 2 1 Investigation 25 | . . . 2 . . . 1 6 8 . 2 . . 5 . . . . 1 . Extermination 4 | . . . . . . . . 1 1 . . . 1 1 . . . . . . Reinforcement 13 | . 2 . 3 . . . . . 1 . . . 4 1 . . . . 1 1 Assault 1 | . . . . . . . . . . . . . . . . . . 1 . . Garrison . | . . . . . . . . . . . . . . . . . . . . . Intercept . | . . . . . . . . . . . . . . . . . . . . . Searches Triggered 1 | . . . 1 . . . . . . . . . . . . . . . . . Construction Impeded . | . . . . . . . . . . . . . . . . . . . . . Haulers Reinforced 1 | . . . . . . . . . 1 . . . . . . . . . . . Active Scanning Responses . | . . . . . . . . . . . . . . . . . . . . . Cargo Convoy Interrupts . | . . . . . . . . . . . . . . . . . . . . . Stealth | -11 -10 -10 -9 -9 -9 -8 -8 -7 -6 -6 -6 -6 -6 -5 -5 -5 -5 -4 -4 -4 --------- Run | Yrd Mat Min Mat Min Exi Min Mat Fac Fac Ext Cet Arc Hub Fac Upp Upp War Pro Fac Arm Distress Signals 18 | . 2 . 2 . . . . 1 3 1 1 . 3 1 . . . . 1 3 Communications Jammed . | . . . . . . . . . . . . . . . . . . . . . Distress Signals . | . . . . . . . . . . . . . . . . . . . . . Times Spotted 274 | . 20 . 36 4 . . 2 10 18 19 11 10 25 17 2 7 . 28 15 50 Peak Tracking Total 33 | . 2 . 5 3 . . 1 5 4 4 10 1 10 7 1 7 . 19 9 33 Tactical Retreats 44 | . 1 . 6 1 . . 1 3 5 3 2 1 7 4 . . . 2 4 4 Traps | -11 -10 -10 -9 -9 -9 -8 -8 -7 -6 -6 -6 -6 -6 -5 -5 -5 -5 -4 -4 -4 ------- Run | Yrd Mat Min Mat Min Exi Min Mat Fac Fac Ext Cet Arc Hub Fac Upp Upp War Pro Fac Arm Traps Triggered 9 | . 1 . . . . . 1 . 1 3 . . 1 1 . . . . . 1 Indirectly . | . . . . . . . . . . . . . . . . . . . . . Trap Hack Attempts . | . . . . . . . . . . . . . . . . . . . . . Triggered . | . . . . . . . . . . . . . . . . . . . . . Disarmed 5 | . . . . . . . . . . 4 . . . 1 . . . . . . Reprogrammed 20 | . . . . . . . . . 4 . . . 8 8 . . . . . . Reused 7 | . . . . . . . . . 1 . . . 6 . . . . . . . Traps Extracted . | . . . . . . . . . . . . . . . . . . . . . Installed . | . . . . . . . . . . . . . . . . . . . . . Triggered 7 | . . . . . . . . . 1 . . . 6 . . . . . . . Machines | -11 -10 -10 -9 -9 -9 -8 -8 -7 -6 -6 -6 -6 -6 -5 -5 -5 -5 -4 -4 -4 ---------- Run | Yrd Mat Min Mat Min Exi Min Mat Fac Fac Ext Cet Arc Hub Fac Upp Upp War Pro Fac Arm Machines Disabled 18 | . . . . . . . . . . 3 2 2 3 . . . . . 1 7 Max in Single Turn 3 | . . . . . . . . . . . 1 1 3 . . . . . 1 1 Garrison Access 9 | . . . . . . . . 1 3 . . . 1 3 . . . . 1 . Network Hub 1 | . . . . . . . . . . . . . 1 . . . . . . . Energy Cycler 1 | . . . . . . . . . . . . . . . . . . . . 1 Machines Repaired . | . . . . . . . . . . . . . . . . . . . . . Machines Dismantled . | . . . . . . . . . . . . . . . . . . . . . Machines Sabotaged . | . . . . . . . . . . . . . . . . . . . . . Overloaded Fab Kills . | . . . . . . . . . . . . . . . . . . . . . Hacking | -11 -10 -10 -9 -9 -9 -8 -8 -7 -6 -6 -6 -6 -6 -5 -5 -5 -5 -4 -4 -4 --------- Run | Yrd Mat Min Mat Min Exi Min Mat Fac Fac Ext Cet Arc Hub Fac Upp Upp War Pro Fac Arm Machines Accessed 128 | . 7 . 10 . 3 . 7 21 17 12 3 1 12 21 . . . 1 8 5 Terminals 85 | . 6 . 6 . . . 5 13 9 12 3 . 11 11 . . . 1 3 5 Fabricators 7 | . . . . . . . . 2 1 . . . . 4 . . . . . . Repair Stations 7 | . 1 . 2 . . . . 1 1 . . . . 1 . . . . 1 . Recycling Units 9 | . . . 1 . . . 1 3 2 . . . . 1 . . . . 1 . Scanalyzers 7 | . . . 1 . . . 1 1 1 . . . . 1 . . . . 2 . Garrison Access 9 | . . . . . . . . 1 3 . . . 1 3 . . . . 1 . Total Hacks 557 | . 23 . 27 . 3 . 32 76 76 42 18 25 54 131 . . . 1 16 33 Successful 382 | . 15 . 17 . 3 . 23 54 40 20 4 25 34 110 . . . 1 11 25 Failed 173 | . 8 . 10 . . . 9 21 36 22 14 . 20 20 . . . . 5 8 Catastrophic 22 | . 2 . 1 . . . 1 . 4 3 2 . 1 7 . . . . 1 . Database Lockouts 2 | . . . . . . . . 1 . . . . . 1 . . . . . . Manual 257 | . 15 . 20 . 1 . 18 37 42 19 2 1 33 51 . . . . 6 12 Terminals 401 | . 18 . 20 . . . 17 52 53 42 18 . 53 86 . . . 1 8 33 Fabricators 31 | . . . . . . . . 9 4 . . . . 18 . . . . . . Repair Stations 26 | . 5 . 4 . . . . 6 3 . . . . 5 . . . . 3 . Recycling Units 20 | . . . 2 . . . 4 4 5 . . . . 4 . . . . 1 . Scanalyzers 37 | . . . 1 . . . 11 3 4 . . . . 15 . . . . 3 . Garrison Access 14 | . . . . . . . . 2 7 . . . 1 3 . . . . 1 . Terminal Hacks 171 | . 1 . 1 . 3 . 1 22 10 14 4 25 18 53 . . . 1 3 15 Record 36 | . . . . . 2 . . . 3 . 4 25 . 2 . . . . . . Part Schematic 26 | . . . . . . . . 9 2 2 . . 1 10 . . . . . 2 Robot Schematic 1 | . . . . . . . . . . . . . . 1 . . . . . . Robot Analysis 4 | . . . . . . . . . . 1 . . 2 . . . . . . 1 Prototype ID Bank 6 | . . . 1 . . . . 1 1 . . . 1 2 . . . . . . Open Door 8 | . . . . . . . . . . 7 . . . . . . . 1 . . Open DSF 2 | . . . . . . . . . . . . . . 1 . . . . 1 . Level Access Points 4 | . . . . . . . . . . 1 . . 1 1 . . . . 1 . Branch Access Points 4 | . . . . . . . . . 1 . . . . 2 . . . . . 1 Emergency Access Points 5 | . . . . . . . . . . . . . 2 2 . . . . . 1 Machine Index 1 | . . . . . . . . . . . . . . 1 . . . . . . Terminal Index 3 | . . . . . . . 1 1 1 . . . . . . . . . . . Fabricator Index 1 | . . . . . . . . . . . . . . . . . . . 1 . Repair Station Index 1 | . . . . . . . . . . . . . . 1 . . . . . . Recycling Unit Index 1 | . . . . . . . . . . . . . . 1 . . . . . . Scanalyzer Index 1 | . . . . . . . . 1 . . . . . . . . . . . . Garrison Index 2 | . . . . . . . . . . . . . . 1 . . . . . 1 Alert Level 4 | . . . . . . . . 2 . . . . . 1 . . . . . 1 Unreport Threat 5 | . . . . . . . . 2 . . . . . 1 . . . . . 2 Locate Traps 7 | . . . . . . . . . . 1 . . 1 4 . . . . . 1 Disarm Traps 2 | . . . . . . . . . . 1 . . . 1 . . . . . . Reprogram Traps 6 | . . . . . . . . . 1 . . . 3 2 . . . . . . Maintenance Status 3 | . . . . . . . . . . . . . . 2 . . . . . 1 Security Status 2 | . . . . . . . . . . . . . 1 . . . . . . 1 Surveillance Status 3 | . . . . . . . . . . . . . . 2 . . . . . 1 Transport Status 1 | . . . . . . . . . 1 . . . . . . . . . . . Investigation Status 1 | . . . . . . . . 1 . . . . . . . . . . . . Extermination Status 1 | . . . . . . . . . . . . . . 1 . . . . . . Reinforcement Status 1 | . . . . . . . . . . . . . . 1 . . . . . . Assault Status 1 | . . . . . . . . . . 1 . . . . . . . . . . Recall Investigation 8 | . . . . . . . . 2 . . . . 1 4 . . . . . 1 Recall Extermination 2 | . . . . . . . . 1 . . . . . 1 . . . . . . Recall Reinforcements 1 | . . . . . . . . . . . . . 1 . . . . . . . Hauler Manifests 3 | . 1 . . . . . . . . . . . . 2 . . . . . . Registered Components 4 | . . . . . . . . 1 . . . . 1 1 . . . . . 1 Registered Prototypes 2 | . . . . . . . . 1 . . . . . 1 . . . . . . Zone Layout 7 | . . . . . . . . . . . . . 3 4 . . . . . . Derelict Proto ID Bank 1 | . . . . . 1 . . . . . . . . . . . . . . . Fabricator Hacks 19 | . . . . . . . . 5 2 . . . . 12 . . . . . . Network Status 2 | . . . . . . . . 1 . . . . . 1 . . . . . . Load Schematic 9 | . . . . . . . . 2 1 . . . . 6 . . . . . . Build 8 | . . . . . . . . 2 1 . . . . 5 . . . . . . Repair Station Hacks 20 | . 4 . 4 . . . . 4 2 . . . . 4 . . . . 2 . Scan Component 10 | . 2 . 2 . . . . 2 1 . . . . 2 . . . . 1 . Repair 10 | . 2 . 2 . . . . 2 1 . . . . 2 . . . . 1 . Recycling Unit Hacks 7 | . . . 1 . . . 1 1 2 . . . . 1 . . . . 1 . Report Inventory 2 | . . . 1 . . . 1 . . . . . . . . . . . . . Retrieve Components 5 | . . . . . . . . 1 2 . . . . 1 . . . . 1 . Scanalyzer 34 | . . . . . . . 11 1 4 . . . . 15 . . . . 3 . Insert Component 16 | . . . . . . . 4 1 2 . . . . 7 . . . . 2 . Analyze 18 | . . . . . . . 7 . 2 . . . . 8 . . . . 1 . Garrison Access Hacks 8 | . . . . . . . . 1 2 . . . 1 3 . . . . 1 . Seal Access 8 | . . . . . . . . 1 2 . . . 1 3 . . . . 1 . Unauthorized Hacks 123 | . 10 . 11 . . . 10 20 18 6 . . 15 22 . . . . 1 10 Terminals 99 | . 9 . 10 . . . 8 14 15 6 . . 15 12 . . . . . 10 Track 1 | . . . . . . . . . . . . . . 1 . . . . . . Assimilate 13 | . . . . . . . 1 . 4 2 . . 4 . . . . . . 2 Botnet 30 | . 3 . 4 . . . 2 7 4 4 . . 1 3 . . . . . 2 Detonate 2 | . . . . . . . . . . . . . 2 . . . . . . . Disrupt 1 | . . . . . . . . . . . . . 1 . . . . . . . Operators 7 | . 1 . 1 . . . . . 1 . . . 1 2 . . . . . 1 Skim 45 | . 5 . 5 . . . 5 7 6 . . . 6 6 . . . . . 5 Fabricators 8 | . . . . . . . . 2 . . . . . 6 . . . . . . Prioritize 5 | . . . . . . . . 1 . . . . . 4 . . . . . . Liberate 2 | . . . . . . . . 1 . . . . . 1 . . . . . . Haulers 1 | . . . . . . . . . . . . . . 1 . . . . . . Repair Stations 4 | . 1 . . . . . . 1 . . . . . 1 . . . . 1 . Mechanics 4 | . 1 . . . . . . 1 . . . . . 1 . . . . 1 . Recycling Units 11 | . . . 1 . . . 2 3 2 . . . . 3 . . . . . . Monitor 1 | . . . . . . . . . . . . . . 1 . . . . . . Reject 1 | . . . . . . . . . . . . . . 1 . . . . . . Recyclers 2 | . . . . . . . 1 . . . . . . 1 . . . . . . Tunnel 7 | . . . 1 . . . 1 3 2 . . . . . . . . . . . Scanalyzers . | . . . . . . . . . . . . . . . . . . . . . Garrison Access 1 | . . . . . . . . . 1 . . . . . . . . . . . Jam 1 | . . . . . . . . . 1 . . . . . . . . . . . Data Cores Recovered 2 | . 1 . . . . . 1 . . . . . . . . . . . . . Used 1 | . 1 . . . . . . . . . . . . . . . . . . . Hacking Detections 89 | . 6 . 8 . . . 7 16 12 5 3 . 10 14 . . . . 3 5 Full Trace Events 17 | . . . 1 . . . 1 3 4 . 2 . . 5 . . . . 1 . Feedback Events . | . . . . . . . . . . . . . . . . . . . . . Feedback Blocked . | . . . . . . . . . . . . . . . . . . . . . Robot Schematics Acquired 1 | . . . . . . . . . . . . . . 1 . . . . . . Robots Built 5 | . . . . . . . . 2 . . . . . 3 . . . . . . Authchips . | . . . . . . . . . . . . . . . . . . . . . Time 236 | . . . . . . . . 67 . . . . . 169 . . . . . . Total Robot Build Rating 26 | . . . . . . . . 8 . . . . . 18 . . . . . . Part Schematics Acquired 37 | . . . . . . . 4 7 4 2 . . 1 17 . . . . 1 1 Parts Built 6 | . . . . . . . . 1 1 . . . . 4 . . . . . . Authchips . | . . . . . . . . . . . . . . . . . . . . . Time 363 | . . . . . . . . 76 76 . . . . 211 . . . . . . Total Part Build Rating 37 | . . . . . . . . 5 5 . . . . 27 . . . . . . Parts Repaired 10 | . 2 . 2 . . . . 2 1 . . . . 2 . . . . 1 . Time 406 | . 58 . 58 . . . . 82 22 . . . . 106 . . . . 80 . Parts Recycled . | . . . . . . . . . . . . . . . . . . . . . Recycled Matter . | . . . . . . . . . . . . . . . . . . . . . Retrieved Matter . | . . . . . . . . . . . . . . . . . . . . . Retrieved Components 18 | . . . . . . . . 3 3 . . . . 10 . . . . 2 . Parts Scanalyzed 15 | . . . . . . . 4 1 2 . . . . 7 . . . . 1 . Part Schematics Acquired 14 | . . . . . . . 4 . 2 . . . . 7 . . . . 1 . Parts Damaged 1 | . . . . . . . . . 1 . . . . . . . . . . . Bothacking | -11 -10 -10 -9 -9 -9 -8 -8 -7 -6 -6 -6 -6 -6 -5 -5 -5 -5 -4 -4 -4 ------------ Run | Yrd Mat Min Mat Min Exi Min Mat Fac Fac Ext Cet Arc Hub Fac Upp Upp War Pro Fac Arm Used RIF Installer . | . . . . . . . . . . . . . . . . . . . . . Robots Hacked . | . . . . . . . . . . . . . . . . . . . . . Non-combat . | . . . . . . . . . . . . . . . . . . . . . Combat . | . . . . . . . . . . . . . . . . . . . . . Robot Hacks Applied . | . . . . . . . . . . . . . . . . . . . . . Relay Couplers Released . | . . . . . . . . . . . . . . . . . . . . . Fabnet Peak Effective % . | . . . . . . . . . . . . . . . . . . . . . Robots Rewired 9 | . . . . . . . . . . 9 . . . . . . . . . . Allies Hacked . | . . . . . . . . . . . . . . . . . . . . . Hacks Repelled . | . . . . . . . . . . . . . . . . . . . . . Allies | -11 -10 -10 -9 -9 -9 -8 -8 -7 -6 -6 -6 -6 -6 -5 -5 -5 -5 -4 -4 -4 -------- Run | Yrd Mat Min Mat Min Exi Min Mat Fac Fac Ext Cet Arc Hub Fac Upp Upp War Pro Fac Arm Total Allies 41 | . . 3 . 2 . . . 2 2 21 . . 2 8 . . . . . 1 Largest Group 13 | . . 3 3 2 2 . . 2 1 13 7 . 1 3 . . . . . 1 Highest-Rated Group 412 | . . 40 40 50 50 . . 80 26 412 304 . 26 98 . . . . . 10 Highest-Rated Ally 159 | . . 16 16 31 31 . . 40 26 159 159 . 26 49 . . . . . 10 Total Orders . | . . . . . . . . . . . . . . . . . . . . . Ally Attacks 192 | . . . 21 12 . . . . . 130 17 . . 12 . . . . . . Total Damage 4382 | . . . 243 104 . . . . . 3114 413 . . 508 . . . . . . Kills 27 | . . . 3 1 . . . . . 20 1 . . 2 . . . . . . Allies Corrupted 1 | . . . . . . . . . . . . . 1 . . . . . . . Allies Melted 2 | . . . . . . . . . . 1 . . . 1 . . . . . . Intel | -11 -10 -10 -9 -9 -9 -8 -8 -7 -6 -6 -6 -6 -6 -5 -5 -5 -5 -4 -4 -4 ------- Run | Yrd Mat Min Mat Min Exi Min Mat Fac Fac Ext Cet Arc Hub Fac Upp Upp War Pro Fac Arm Robot Analysis Total 4 | . . . . . . . . . . 1 . . 2 . . . . . . 1 Derelict Logs Recovered 4 | . . 1 . 2 . . . . . . . . . . . . . 1 . . Drone Launches . | . . . . . . . . . . . . . . . . . . . . . Drone Recoveries . | . . . . . . . . . . . . . . . . . . . . . Exploration | -11 -10 -10 -9 -9 -9 -8 -8 -7 -6 -6 -6 -6 -6 -5 -5 -5 -5 -4 -4 -4 ------------- Run | Yrd Mat Min Mat Min Exi Min Mat Fac Fac Ext Cet Arc Hub Fac Upp Upp War Pro Fac Arm Turns Passed 10356 | 31 788 45 835 123 82 273 819 969 1384 702 66 502 698 1776 113 9 26 379 375 361 Spaces Moved 14879 | 44 878 72 1095 233 213 601 660 2188 2275 859 168 343 1043 2268 264 7 72 433 563 600 Core 1678 | 44 878 72 561 . . . . . . 2 . . . 63 . . . . 34 24 Treads . | . . . . . . . . . . . . . . . . . . . . . Legs . | . . . . . . . . . . . . . . . . . . . . . Wheels . | . . . . . . . . . . . . . . . . . . . . . Hover . | . . . . . . . . . . . . . . . . . . . . . Flight 13201 | . . . 534 233 213 601 660 2188 2275 857 168 343 1043 2205 264 7 72 433 529 576 Fastest Speed 28 | 50 50 50 37 37 37 37 37 34 32 32 28 32 40 37 37 34 34 34 37 32 Average Speed 39 | 50 56 50 44 37 37 37 37 34 33 33 31 92 40 39 37 38 34 35 39 38 Slowest Speed 200 | 50 150 50 107 37 37 107 37 37 34 150 32 178 105 200 37 39 34 40 100 170 Overloaded Moves 36 | . . . . . . . . . . . 36 . . . . . . . . . Propulsion Burnouts . | . . . . . . . . . . . . . . . . . . . . . Robots Hopped 55 | . . . . . . . . . 10 5 4 . 9 8 1 . . 4 10 4 Cave-ins Triggered 3 | . . . . . . . . . 1 . . . . 2 . . . . . . Exploration Rate (%) 49 | 3 91 16 68 55 62 91 40 48 35 58 70 95 73 41 52 5 13 55 16 45 Regions Visited 20 Branch Regions 13 Pre-discovered Areas 15 | . 1 . 1 . 1 . 1 5 3 . . . 3 . . . . . . . Known Exits Taken 11 | . . 1 1 . . 1 1 1 1 . . . 1 1 1 . . 1 1 . Unknown Exits Taken 9 | 1 1 . . 1 1 . . . . 1 1 1 . . . 1 1 . . . Scrap Searched 6 | . . . . 3 . 1 . . . . . . . . 2 . . . . . Spaces Dug 216 | . 5 . 11 . . . 17 24 69 14 1 . 9 42 . . . . 13 11 Terrain Destroyed 450 | . 5 . 11 . . 7 17 24 69 14 1 . 204 42 32 . . . 13 11 Melee 210 | . 5 . 11 . . . 17 24 69 8 1 . 9 42 . . . . 13 11 Projectile 6 | . . . . . . . . . . 6 . . . . . . . . . . AOE 234 | . . . . . . 7 . . . . . . 195 . 32 . . . . . Terrain Rammed . | . . . . . . . . . . . . . . . . . . . . . Walls Destroyed . | . . . . . . . . . . . . . . . . . . . . . Machines Disabled . | . . . . . . . . . . . . . . . . . . . . . Actions | -11 -10 -10 -9 -9 -9 -8 -8 -7 -6 -6 -6 -6 -6 -5 -5 -5 -5 -4 -4 -4 --------- Run | Yrd Mat Min Mat Min Exi Min Mat Fac Fac Ext Cet Arc Hub Fac Upp Upp War Pro Fac Arm Total 18466 | 49 1027 80 1285 263 215 636 1207 2360 2750 1233 172 492 1280 3070 272 11 72 647 665 680 Wait 2624 | . 28 9 73 19 . 4 514 125 332 236 2 75 219 689 3 . . 206 64 26 Move 14750 | 43 877 71 1094 232 212 600 659 2187 2253 848 160 342 1024 2249 261 7 71 425 543 592 Hop 52 | . . . . . . . . . 10 5 3 . 9 8 1 . . 3 9 4 Pick Up 75 | 2 14 . 8 1 1 4 3 3 8 3 . 6 . 13 . . . 1 2 6 Fast Attach 74 | 3 4 . 6 1 . 2 . 6 4 3 . 4 . 14 . 1 . . 9 17 Attach 46 | . 5 . 4 . . . 2 1 6 3 1 7 2 6 1 1 . 2 4 1 Detach 34 | . 1 . 2 1 . . . 2 4 3 1 6 1 4 1 1 . 2 3 2 Swap 68 | . 7 . 5 2 1 7 1 2 7 7 . 12 4 10 1 . 1 1 . . Drop 78 | . 9 . 8 2 1 5 2 5 7 5 . 7 . 14 . . . 1 3 9 Fire 96 | 1 76 . . . . 1 . . . 6 . 5 2 . 4 . . . 1 . Melee 479 | . 6 . 85 5 . 13 26 29 118 27 5 28 19 61 . 1 . 6 27 23 Ram . | . . . . . . . . . . . . . . . . . . . . . Kick . | . . . . . . . . . . . . . . . . . . . . . Crush . | . . . . . . . . . . . . . . . . . . . . . Escape Stasis 57 | . . . . . . . . . 1 54 . . . 2 . . . . . . Rewire 33 | . . . . . . . . . . 33 . . . . . . . . . . Trap . | . . . . . . . . . . . . . . . . . . . . . Miscellaneous . | . . . . . . . . . . . . . . . . . . . . . Route ------- -11/Scrapyard -10/Materials (discovered 6 exits: *Mat x3 / [*Min x2] / Sub) -10/Mines (discovered 2 exits: *Mat x2) -9/Materials (discovered 4 exits: *Mat x3 / *Min) -9/Mines -9/Exiles (discovered 2 exits: [*Min x2]) -8/Mines -8/Materials (discovered 3 exits: *Fac x3) -7/Factory (discovered 7 exits: *Fac x3 / *Sto x2 / *Low x2) -6/Factory (discovered 7 exits: *Fac x3 / *Low x2 / *Ext x2) -6/Extension (discovered 3 exits: *Fac x2 / *Cet) -6/Cetus (discovered 3 exits: Fac x2 / *Arc) -6/Archives (discovered 3 exits: *Fac / *Hub x2) -6/Hub_04(d) (discovered 4 exits: *Fac x4) -5/Factory (discovered 6 exits: *Fac x4 / *Upp x2) -5/Upper Caves -5/Upper Caves (discovered 2 exits: Fac / [*War]) -5/Warlord -4/Proximity Caves -4/Factory (discovered 6 exits: Res x4 / Upp / *Arm) -4/Armory (discovered 2 exits: Res x2) History --------- Turn | Location | Event 10 | -11/Scrapyard | Discovered new exit (range 15) 32 | -11/Scrapyard | Entered Materials 225 | -10/Materials | Core integrity fell below 50% 235 | -10/Materials | Repaired Sml. Laser 247 | -10/Materials | Core integrity fell below 20% 303 | -10/Materials | Build established: Mutant 367 | -10/Materials | Discovered new exit (range 14) 484 | -10/Materials | Discovered new exit (range 14) 525 | -10/Materials | Discovered new exit (range 6) 531 | -10/Materials | Discovered new exit (range 12) 572 | -10/Materials | Learned location of Mines (-8) 623 | -10/Materials | Identified exit to Subcaves 665 | -10/Materials | Learned Storage garrison access intel 686 | -10/Materials | Repaired Weight Redist. System 719 | -10/Materials | Learned Materials stockpile data 750 | -10/Materials | Identified exit to Materials 750 | -10/Materials | Learned location of 2 exits from Materials 789 | -10/Materials | Learned location of 2 exits from Mines 820 | -10/Materials | Entered Mines 826 | -10/Mines | Assisted by bots powering up and referring to "LRC-V3" 832 | -10/Mines | Met a Derelict bent on vengeance 833 | -10/Mines | Learned Materials stockpile data 865 | -10/Mines | Entered Materials 865 | -9/Materials | Accompanied by 3 allies 865 | -9/Materials | Evolved 2 slots: Utility x2 866 | -9/Materials | Identified exit to Mines 866 | -9/Materials | Identified exit to Materials 1164 | -9/Materials | Build established: Scavenger-Mutant 1238 | -9/Materials | Lost 3 parts (1p2u) 1328 | -9/Materials | Repaired Hammer 1337 | -9/Materials | Core integrity fell below 50% 1360 | -9/Materials | Discovered exit to Materials (range 3) 1531 | -9/Materials | Repaired Weight Redist. System 1643 | -9/Materials | Learned Storage stockpile data 1644 | -9/Materials | Learned location of 1 exit from Recycling 1655 | -9/Materials | Learned 2 Storage zone layouts 1665 | -9/Materials | Search patrols dispatched 1676 | -9/Materials | Learned location of 2 exits from Materials 1700 | -9/Materials | Entered Mines 1747 | -9/Mines | A weapon hastily lodged in a ceiling crevice suddenly fell to the ground 1780 | -9/Mines | Learned Materials security intel 1787 | -9/Mines | Build established: Mutant 1796 | -9/Mines | Received a Rocket Launcher from a helpful Derelict 1802 | -9/Mines | Deemed a non-threat by the Exiles lab entrance 1802 | -9/Mines | Discovered new exit (range 5) 1823 | -9/Mines | Entered Exiles 1823 | -9/Exiles | Accompanied by 2 allies 1828 | -9/Exiles | Discovered new exit (range 16) 1833 | -9/Exiles | Met 8R-AWN 1839 | -9/Exiles | Met EX-HEX 1850 | -9/Exiles | Met EX-BIN 1853 | -9/Exiles | Led the pair of lost Derelicts to a safe place 1854 | -9/Exiles | Aligned with FarCom system 1855 | -9/Exiles | Given EX-Vault access code 1863 | -9/Exiles | Opened EX-Vault 1867 | -9/Exiles | Found Longsword +1 1875 | -9/Exiles | Warned to stay clear of 0b10 Research branches 1882 | -9/Exiles | Exiles lab attacked by MAIN.C 1887 | -9/Exiles | Learned location of Zion (-7) 1901 | -9/Exiles | Discovered new exit (range 14) 1905 | -9/Exiles | Left Exiles lab with Longsword +1 1905 | -9/Exiles | Entered Mines 1983 | -8/Mines | Discovered exit to Materials (range 11) 2178 | -8/Mines | Entered Materials 2178 | -8/Materials | Evolved 2 slots: Utility x2 2179 | -8/Materials | Identified exit to Factory 2322 | -8/Materials | Build established: Scavenger-Scout 2562 | -8/Materials | Learned location of 1 exit from Lower Caves 2626 | -8/Materials | Learned Recycling recycling unit intel 2679 | -8/Materials | Learned Storage emergency access door positions 2758 | -8/Materials | Learned location of 2 exits from Factory 2784 | -8/Materials | Learned Factory trap positions 2802 | -8/Materials | Learned location of 1 exit from Lower Caves 2831 | -8/Materials | Learned 2 Lower Caves zone layouts 2920 | -8/Materials | Learned 2 Storage zone layouts 2997 | -8/Materials | Entered Factory 2997 | -7/Factory | Evolved 2 slots: Propulsion x1, Utility x1 2998 | -7/Factory | Identified exit to Lower Caves 2999 | -7/Factory | Identified exit to Factory 2999 | -7/Factory | Identified exit to Storage 3000 | -7/Factory | Loaded intel: 85 trap records 3472 | -7/Factory | Learned location of 1 exit from Extension 3496 | -7/Factory | Central database locked down 3506 | -7/Factory | Learned 2 Lower Caves zone layouts 3545 | -7/Factory | Learned 2 Upper Caves zone layouts 3550 | -7/Factory | Learned 2 Extension zone layouts 3554 | -7/Factory | Discovered exit to Factory (range 17) 3567 | -7/Factory | Learned location of Warlord (-5) 3651 | -7/Factory | Fabricated Biomechanical Wings? 3657 | -7/Factory | Build established: Hacker-Scout 3814 | -7/Factory | Fabricated X-62 Marksman (x2) 3902 | -7/Factory | Repaired Mak. Hammer 3941 | -7/Factory | Repaired Imp. Utility Shielding 3966 | -7/Factory | Entered another Factory area 3966 | -6/Factory | Evolved 2 slots: Utility x2 3967 | -6/Factory | Identified exit to Factory 4022 | -6/Factory | Repaired Mic. Nuclear Core 4430 | -6/Factory | Fabricated Cld. Cesium-ion Thruster? 5002 | -6/Factory | Discovered new exit (range 17) 5034 | -6/Factory | Identified exit to Lower Caves 5034 | -6/Factory | Identified exit to Extension 5064 | -6/Factory | Crushed by falling debris 5164 | -6/Factory | Learned location of 1 exit from Cetus 5212 | -6/Factory | Learned location of 2 exits from Lower Caves 5251 | -6/Factory | Learned location of 1 exit from Cetus 5278 | -6/Factory | Loaded intel: 62 trap records 5350 | -6/Factory | Entered Extension 5380 | -6/Extension | Rescued a captive Derelict 5431 | -6/Extension | Rescued a captive Derelict 5432 | -6/Extension | Rescued a captive Derelict 5433 | -6/Extension | Rescued a captive Derelict 5530 | -6/Extension | Rescued a captive Derelict 5533 | -6/Extension | Rescued a captive Derelict 5602 | -6/Extension | Rescued a captive Derelict 5602 | -6/Extension | Rescued a captive Derelict 5682 | -6/Extension | Spotted B-75 Beast 5756 | -6/Extension | Rescued A7 5981 | -6/Extension | Rescued a captive Derelict 5983 | -6/Extension | Rescued a captive Derelict 6004 | -6/Extension | Discovered new exit (range 6) 6052 | -6/Extension | Entered Cetus 6052 | -6/Cetus | Accompanied by 7 allies (A7) 6057 | -6/Cetus | Acquired a Cetus Manufacturing Module code from A7 6057 | -6/Cetus | Spotted Cetus Guard 6058 | -6/Cetus | Spotted Cetus Guard 6059 | -6/Cetus | Spotted Cetus Guard 6060 | -6/Cetus | Spotted Cetus Guard 6112 | -6/Cetus | Discovered new exit (range 21) 6115 | -6/Cetus | Lost 3 allies 6118 | -6/Cetus | Entered Archives 6133 | -6/Archives | Unable to access archive contents 6500 | -6/Archives | Unable to access archive contents 6504 | -6/Archives | Discovered exit to Factory (range 15) 6532 | -6/Archives | Discovered new exit (range 21) 6566 | -6/Archives | Discovered new exit (range 22) 6574 | -6/Archives | Unable to access archive contents 6586 | -6/Archives | Unable to access archive contents 6620 | -6/Archives | Entered Hub_04(d) 6791 | -6/Hub_04(d) | Learned location of Extension (-6) 6825 | -6/Hub_04(d) | Learned Factory fabricator intel 6851 | -6/Hub_04(d) | Learned location of 1 exit from Extension 6868 | -6/Hub_04(d) | Learned location of 1 exit from Proximity Caves 6896 | -6/Hub_04(d) | Build established: Wizard-Scout 6902 | -6/Hub_04(d) | Learned Extension stockpile data 6996 | -6/Hub_04(d) | Core integrity fell below 50% 7110 | -6/Hub_04(d) | Network Hub disabled 7225 | -6/Hub_04(d) | Spotted Lightning 7225 | -6/Hub_04(d) | Spotted Lightning 7230 | -6/Hub_04(d) | Spotted Lightning 7285 | -6/Hub_04(d) | Core integrity fell below 20% 7313 | -6/Hub_04(d) | Spotted B-75 Beast 7318 | -6/Hub_04(d) | Entered Factory 7318 | -5/Factory | Evolved 2 slots: Utility x2 7319 | -5/Factory | Identified exit to Factory 7320 | -5/Factory | Loaded intel: 6 fabricator locations 7517 | -5/Factory | Fabricated B-60 Warrior? 7549 | -5/Factory | Fabricated Adv. Hacking Suite (x1) 7655 | -5/Factory | Repaired Biomechanical Wings 7721 | -5/Factory | Identified exit to Upper Caves 7809 | -5/Factory | Fabricated Exp. Hacking Suite (x1) 7902 | -5/Factory | Fabricated Exp. Hacking Suite (x1) 8109 | -5/Factory | Crushed by falling debris 8121 | -5/Factory | Crushed by falling debris 8200 | -5/Factory | Repaired Structural Scanner 8289 | -5/Factory | Spotted B-75 Beast 8366 | -5/Factory | Fabricated Exp. Hacking Suite? 8443 | -5/Factory | Central database locked down 8559 | -5/Factory | Learned Research trap positions 8599 | -5/Factory | Learned Quarantine stockpile data 8630 | -5/Factory | Learned location of 1 exit from Armory 8652 | -5/Factory | Learned location of 2 exits from Upper Caves 8669 | -5/Factory | Learned Testing trap positions 8708 | -5/Factory | Learned 4 Extension zone layouts 9094 | -5/Factory | Entered Upper Caves 9095 | -5/Upper Caves | Identified exit to Upper Caves 9197 | -5/Upper Caves | Attracted the attention of an 0b10 checkpoint 9207 | -5/Upper Caves | Entered another Upper Caves area 9207 | -5/Upper Caves | Discovered new exit (range 8) 9216 | -5/Upper Caves | Entered Warlord 9230 | -5/Warlord | System corruption cleaned by Quarantine Array 9237 | -5/Warlord | Discovered new exit (range 14) 9242 | -5/Warlord | Entered Proximity Caves 9244 | -4/Proximity Caves | Lost 3 parts (2n1u) 9245 | -4/Proximity Caves | Spotter reported a threat 9363 | -4/Proximity Caves | Spotter reported a threat 9381 | -4/Proximity Caves | Build established: Wizard-Mutant 9395 | -4/Proximity Caves | Received a Behemoth hack from an annoying Tinkerer 9497 | -4/Proximity Caves | Spotted B-86 Titan 9558 | -4/Proximity Caves | Attracted the attention of an 0b10 outpost 9588 | -4/Proximity Caves | Attracted the attention of an 0b10 checkpoint 9589 | -4/Proximity Caves | Core integrity fell below 50% 9598 | -4/Proximity Caves | Spotted B-86 Titan 9599 | -4/Proximity Caves | Entered a huge 0b10 base via the front door 9611 | -4/Proximity Caves | Core integrity fell below 20% 9621 | -4/Proximity Caves | Entered Factory 9621 | -4/Factory | Evolved 2 slots: Utility x2 9622 | -4/Factory | Identified exit to Upper Caves 9646 | -4/Factory | Identified exit to Research 9649 | -4/Factory | Identified exit to DSF 9651 | -4/Factory | Lost 7 parts (1p1n4u1w) 9757 | -4/Factory | Repaired Biomechanical Wings 9810 | -4/Factory | Discovered new exit (range 21) 9990 | -4/Factory | Build established: Hacker-Scout 9995 | -4/Factory | Identified exit to Armory 9996 | -4/Factory | Entered Armory 10294 | -4/Armory | Energy Cycler disabled 10326 | -4/Armory | System corruption reached 10% 10337 | -4/Armory | Core integrity fell below 50% 10346 | -4/Armory | Core integrity fell below 20% 10357 | -4/Armory | Destroyed by X-77 Beamer with Gatling Laser Last Messages --------------- payload. 10336_ S-27 Virus unfolds itself. 10336_ System corrupted: Slammed into wall. 10336_ Authchip [Propulsion] destroyed. 10336_ System corrupted by crushing effect (+5). 10342_ System corrupted: Biomechanical Wings rejected. 10342_ Acquired Biomechanical Wings. 10343_ Triggered Segregator Trap. 10343_ Arcs of energy rise from the floor. 10343_ Authchip [Device] blown off. 10343_ Machine Analyzer blown off. 10343_ Authchip [Processor] blown off. 10343_ Biomechanical Wings blown off. 10344_ Acquired Biomechanical Wings. 10345_ Biomechanical Wings severed. 10347_ >> SKIM: Loading 1 Research entrance... 10352_ Adv. Signal Interpreter destroyed. 10356_ C-35 Carver destroyed. 10357_ System corrupted: Energy discharge (-29). Map ----- +----------------------------------------------------+ | | | | | | | | | | | | | | | | | | | ?????????????????????????????????????????????????? | | ?????????????????????????????????????????????????? | | ?????????????????????????????????????????????????? | | ?????????????????????????????????????????????????? | | ?????????????????????????????????????????????????? | | ?????????????????????????????????????????????????? | | ?????????????????????????????????????????????????? | | ?????????????????????????????????????????????????? | | ?????????????????????????????????????????????????? | | ?????????????????????????????????????????????????? | | ?????????????????????????????????????????????????? | | ?????????????????????????????????????????????????? | | ?????????????????????????????????????????????????? | | ?????????????????????????########????????????????? | | ?????????????????????????# #????????????????? | | ?????????????############# #????????????????? | | ?????????????# x @ #?????#######+#### | | ?????????????# e x Y #?????? | | ?????????H???# ########## #???????# | | ?????????????????????????# * #???????# /== | | ????????????????????########s#/####/##??# /== | | ????????????????????# %!s #??# /= | | ????????????????????# """sss #??# | | ????????????????????# ss #??# | | ????????????????????# l s p#### !! | | ????????????????????# l + "%" !! | | ????????????????????# """ # " | | ????????????????????# l + = | | ????????????????????# ####### | | ????????????????????# #?????####### | | ????????????????????##################???????????? | | ???